[Event "World Junior U20 Girls 2018"]
[Site "Gebze"]
[Date "2018.09.07"]
[Round "4"]
[White "Rousseau, Christilla"]
[Black "Caxita, Esperanca"]
[Result "0-1"]
[ECO "D02"]
[WhiteElo "1677"]
[BlackElo "1803"]
[Annotator "NA"]
[PlyCount "112"]
[EventDate "2018.09.05"]
[EventType "swiss"]
[EventCountry "TUR"]
[SourceTitle "playchess.com"]
[Source "ChessBase"]
[SourceQuality "1"]
[TimeControl "40/5400+30:1800+30"]

1. d4 {[%emt 0:00:30]} d5 {[%emt 0:00:30]} 2. Bf4 {[%emt 0:00:00]} Nd7 {[%emt 0:00:30]} 3. e3 {[%emt 0:00:00]} Ngf6 {[%emt 0:00:30]} 4. c3 {[%emt 0:00:30]} c5 {[%emt 0:00:30]} 5. Nd2 {[%emt 0:00:30]} e6 {[%emt 0:00:30]} 6. Ngf3 {[%emt 0:01:30]} Be7 {[%emt 0:00:30]} 7. h3 {[%emt 0:00:30]} Qb6 {[%emt 0:01:30]} 8. Qb3 {[%emt 0:01:30]} c4 {[%emt 0:01:30]} 9. Qc2 {[%emt 0:00:30]} Bd6 {[%emt 0:01:30]} 10. Bxd6 {[%emt 0:01:30]} Qxd6 {[%emt 0:00:30]} 11. e4 {[%emt 0:09:30]} Qc6 {[%emt 0:08:30]} 12. e5 {[%emt 0:03:30]} Nh5 {[%emt 0:03:30]} 13. Be2 {[%emt 0:07:30]} Nf4 {[%emt 0:01:30]} 14. g3 {[%emt 0:00:30]} Nxe2 {[%emt 0:01:30]} 15. Kxe2 {[%emt 0:00:30]} Nb6 {[%emt 0:01:30]} 16. Nh2 {[%emt 0:03:30]} Bd7 {[%emt 0:01:30]} 17. f4 {[%emt 0:01:30]} Qa4 {[%emt 0:00:30]} 18. Qxa4 {[%emt 0:04:30]} Nxa4 {[%emt 0:01:30]} 19. Rab1 {[%emt 0:02:30]} Rc8 {[%emt 0:00:30]} 20. Rhf1 {[%emt 0:05:30]} Rc6 {[%emt 0:00:30]} 21. Kd1 {[%emt 0:02:30]} Ke7 {[%emt 0:01:30]} 22. g4 {[%emt 0:02:30]} g6 {[%emt 0:02:30]} 23. Nhf3 {[%emt 0:05:30]} Rb8 {[%emt 0:02:30]} 24. Ng5 {[%emt 0:02:30]} h6 {[%emt 0:00:30]} 25. Nh7 {[%emt 0:02:30]} b5 {[%emt 0:00:30]} 26. a3 {[%emt 0:04:30]} a5 {[%emt 0:00:30]} 27. Kc2 {[%emt 0:05:30]} b4 {[%emt 0:02:30]} 28. axb4 {[%emt 0:00:30]} axb4 {[%emt 0:00:30]} 29. Nf6 {[%emt 0:02:30]} Rcb6 {[%emt 0:00:30]} 30. Nxd7 {[%emt 0:01:30]} Kxd7 {[%emt 0:00:30]} 31. f5 {[%emt 0:00:00]} exf5 {[%emt 0:00:30]} 32. gxf5 {[%emt 0:00:00]} bxc3 {[%emt 0:00:30]} 33. bxc3 {[%emt 0:02:30]} Rb2+ {[%emt 0:01:30]} 34. Rxb2 {[%emt 0:01:30]} Rxb2+ {[%emt 0:00:30]} 35. Kc1 {[%emt 0:00:30]} g5 {[%emt 0:02:30]} 36. Re1 {[%emt 0:01:30]} Ke7 {[%emt 0:02:30]} 37. h4 {[%emt 0:06:52]} Rb8 {[%emt 0:00:30]} 38. Kc2 {[%emt 0:03:28]} g4 {[%emt 0:04:30]} 39. h5 {[%emt 0:00:19]} Rg8 {[%emt 0:01:30]} 40. Rb1 {[%emt 0:00:00]} Rd8 {[%emt 0:00:00]} 41. Rb4 {[%emt 0:01:51]} Ra8 {[%emt 0:04:00]} 42. Rb7+ {[%emt 0:02:30]} Ke8 {[%emt 0:00:30]} 43. e6 {[%emt 0:03:30]} fxe6 {[%emt 0:01:30]} 44. fxe6 {[%emt 0:00:30]} Ra6 {[%emt 0:00:00]} 45. Rg7 {[%emt 0:05:30]} Rxe6 {[%emt 0:01:00]} 46. Rxg4 {[%emt 0:00:30]} Re3 {[%emt 0:00:30]} 47. Rg8+ {[%emt 0:00:30]} Kf7 {[%emt 0:00:30]} 48. Rd8 {[%emt 0:00:30]} Rxc3+ {[%emt 0:00:30]} 49. Kb1 {[%emt 0:00:30]} Rd3 {[%emt 0:00:30]} 50. Kc2 {[%emt 0:00:30]} Rxd4 {[%emt 0:03:30]} 51. Nf3 {[%emt 0:00:30]} Rf4 {[%emt 0:03:30]} 52. Ne5+ {[%emt 0:01:30]} Ke6 {[%emt 0:01:30]} 53. Re8+ {[%emt 0:01:30]} Kd6 {[%emt 0:00:30]} 54. Ng6 {[%emt 0:00:30]} Rf5 {[%emt 0:01:30]} 55. Rd8+ {[%emt 0:00:30]} Kc5 {[%emt 0:00:30]} 56. Ne7 {[%emt 0:04:00]} Rxh5 {[%emt 0:00:30]} 0-1

[Event "World Junior U20 Girls 2018"]
[Site "Gebze"]
[Date "2018.09.07"]
[Round "4"]
[White "Anandpara Jayendra Saloni"]
[Black "Huttl, Sofie"]
[Result "0-1"]
[ECO "D02"]
[WhiteElo "1326"]
[BlackElo "1727"]
[Annotator "NA"]
[PlyCount "94"]
[EventDate "2018.09.05"]
[EventType "swiss"]
[EventCountry "TUR"]
[SourceTitle "playchess.com"]
[Source "ChessBase"]
[SourceQuality "1"]
[TimeControl "40/5400+30:1800+30"]

1. d4 {[%emt 0:00:30]} d5 {[%emt 0:00:30]} 2. Bf4 {[%emt 0:00:00]} Nf6 {[%emt 0:00:00]} 3. e3 {[%emt 0:00:00]} e6 {[%emt 0:01:00]} 4. Nd2 {[%emt 0:00:30]} Bd6 {[%emt 0:00:30]} 5. Bg3 {[%emt 0:00:30]} c5 {[%emt 0:00:30]} 6. c3 {[%emt 0:00:30]} Nc6 {[%emt 0:00:00]} 7. Ngf3 {[%emt 0:00:30]} b6 {[%emt 0:01:00]} 8. Bd3 {[%emt 0:00:30]} O-O {[%emt 0:00:30]} 9. Ne5 {[%emt 0:01:30]} Bb7 {[%emt 0:00:30]} 10. Rc1 {[%emt 0:01:30]} Ne7 {[%emt 0:01:30]} 11. Ng4 {[%emt 0:05:30]} Nf5 {[%emt 0:02:30]} 12. Nxf6+ {[%emt 0:10:30]} Qxf6 {[%emt 0:00:30]} 13. Nf3 {[%emt 0:01:30]} Nxg3 {[%emt 0:08:30]} 14. hxg3 {[%emt 0:00:30]} h6 {[%emt 0:00:00]} 15. Bc2 {[%emt 0:03:30]} c4 {[%emt 0:02:00]} 16. b3 {[%emt 0:00:30]} cxb3 {[%emt 0:12:30]} 17. axb3 {[%emt 0:00:30]} Ba6 {[%emt 0:01:30]} 18. Ra1 {[%emt 0:01:30]} Bb5 {[%emt 0:00:30]} 19. Nh2 {[%emt 0:02:30]} Rfc8 {[%emt 0:02:30]} 20. Ng4 {[%emt 0:01:30]} Qd8 {[%emt 0:09:30]} 21. Nxh6+ {[%emt 0:04:30]} gxh6 {[%emt 0:08:30]} 22. Rxh6 {[%emt 0:01:30]} Qg5 {[%emt 0:00:30]} 23. Rh4 {[%emt 0:14:30]} f5 {[%emt 0:09:30]} 24. Rh5 {[%emt 0:00:30]} Qg7 {[%emt 0:00:30]} 25. f4 {[%emt 0:01:30]} Qxg3+ {[%emt 0:01:30]} 26. Kd2 {[%emt 0:00:00]} Qf2+ {[%emt 0:00:30]} 27. Kc1 {[%emt 0:01:00]} Qxe3+ {[%emt 0:02:30]} 28. Kb1 {[%emt 0:01:30]} Qe2 {[%emt 0:04:30]} 29. Qh1 {[%emt 0:02:30]} Qf1+ {[%emt 0:00:30]} 30. Kb2 {[%emt 0:02:30]} Qxh1 {[%emt 0:00:30]} 31. Raxh1 {[%emt 0:00:00]} Bxf4 {[%emt 0:01:30]} 32. Rh8+ {[%emt 0:04:00]} Kg7 {[%emt 0:00:30]} 33. R1h7+ {[%emt 0:01:30]} Kg6 {[%emt 0:00:30]} 34. Rxc8 {[%emt 0:00:30]} Rxc8 {[%emt 0:00:30]} 35. Rxa7 {[%emt 0:00:30]} Bd2 {[%emt 0:00:30]} 36. c4 {[%emt 0:04:30]} dxc4 {[%emt 0:00:30]} 37. bxc4 {[%emt 0:00:00]} Bxc4 {[%emt 0:00:30]} 38. Bb3 {[%emt 0:01:00]} Bxb3 {[%emt 0:01:30]} 39. Kxb3 {[%emt 0:00:30]} Rd8 {[%emt 0:00:30]} 40. Rb7 {[%emt 0:00:00]} Rxd4 {[%emt 0:02:30]} 41. Rxb6 {[%emt 0:03:00]} Re4 {[%emt 0:03:30]} 42. Kc2 {[%emt 0:02:30]} Bf4 {[%emt 0:00:30]} 43. Kd3 {[%emt 0:00:30]} Re3+ {[%emt 0:00:30]} 44. Kd4 {[%emt 0:00:30]} Kf6 {[%emt 0:03:30]} 45. Rc6 {[%emt 0:05:30]} Re2 {[%emt 0:00:30]} 46. Rc8 {[%emt 0:00:30]} Rxg2 {[%emt 0:00:30]} 47. Rf8+ {[%emt 0:00:30]} Ke7 {[%emt 0:00:30]} 0-1

[Event "World Junior U20 Girls 2018"]
[Site "Gebze"]
[Date "2018.09.10"]
[Round "6"]
[White "Assaubayeva, Bibisara"]
[Black "Maltsevskaya, Aleksandra"]
[Result "1/2-1/2"]
[ECO "A57"]
[WhiteElo "2371"]
[BlackElo "2234"]
[Annotator "ChessBase"]
[PlyCount "118"]
[EventDate "2018.09.05"]
[EventType "swiss"]
[EventCountry "TUR"]
[SourceTitle "playchess.com"]
[Source "ChessBase"]
[SourceQuality "1"]
[TimeControl "40/5400+30:1800+30"]

1. d4 {[%emt 0:00:30]} Nf6 {[%emt 0:00:30]} 2. c4 {[%emt 0:00:30]} c5 {[%emt 0:00:30]} 3. d5 {[%emt 0:00:00]} b5 {[%emt 0:00:00]} 4. Qc2 {[%emt 0:00:00]} bxc4 {[%emt 0:00:00]} 5. e4 {[%emt 0:00:30]} e6 {[%emt 0:00:00]} 6. Bxc4 {[%emt 0:00:30]} exd5 {[%emt 0:00:00]} 7. exd5 {[%emt 0:00:30]} d6 {[%emt 0:00:00]} 8. Nf3 {[%emt 0:03:30]} Be7 {[%emt 0:01:00]} 9. O-O {[%emt 0:01:30]} O-O {[%emt 0:00:30]} 10. Nc3 {[%emt 0:02:30]} Nbd7 {[%emt 0:01:30]} 11. a4 {[%emt 0:06:30]} Nb6 {[%emt 0:01:30]} 12. Ba2 {[%emt 0:03:30]} Bg4 {[%emt 0:08:30]} 13. Nd2 {[%emt 0:03:30]} c4 {[%emt 0:21:30]} 14. Bxc4 {[%emt 0:07:30]} Qc8 {[%emt 0:05:30]} 15. b3 {[%emt 0:13:30]} Bf5 {[%emt 0:15:30]} 16. Qd1 {[%emt 0:03:30]} Ng4 {[%emt 0:01:30]} 17. a5 {[%emt 0:08:30]} Nxc4 {[%emt 0:03:30]} 18. Nxc4 {[%emt 0:00:30]} Ne5 {[%emt 0:07:30]} 19. Nxe5 {[%emt 0:02:30]} dxe5 {[%emt 0:03:30]} 20. Bb2 {[%emt 0:04:30]} Rd8 {[%emt 0:01:30]} 21. Qe2 {[%emt 0:04:30]} Rb8 {[%emt 0:01:30]} 22. Qd1 {[%emt 0:09:30]} Bg6 {[%emt 0:06:28]} 23. Re1 {[%emt 0:05:44]} Qb7 {[%emt 0:01:03]} 24. Ba3 {[%emt 0:02:32]} Bxa3 {[%emt 0:04:19]} 25. Rxa3 {[%emt 0:00:30]} Qb4 {[%emt 0:00:30]} 26. Qa1 {[%emt 0:00:30]} Rbc8 {[%emt 0:00:30]} 27. Re3 {[%emt 0:00:30]} f5 {[%emt 0:00:30]} 28. Ra4 {[%emt 0:00:30]} Qxb3 {[%emt 0:00:30]} 29. Ra3 {[%emt 0:00:30]} Qb8 {[%emt 0:00:30]} 30. h3 {[%emt 0:00:30]} e4 {[%emt 0:00:30]} 31. Re1 {[%emt 0:00:30]} Qe5 {[%emt 0:00:30]} 32. a6 {[%emt 0:00:30]} Rd7 {[%emt 0:13:14]} 33. Rb3 {[%emt 0:11:49]} h6 {[%emt 0:00:42]} 34. Rb7 {[%emt 0:02:23]} Rcd8 {[%emt 0:00:15]} 35. Qa5 {[%emt 0:00:37]} f4 {[%emt 0:00:53]} 36. Qc5 {[%emt 0:00:45]} Kh7 {[%emt 0:00:35]} 37. Qc6 {[%emt 0:01:07]} Rd6 {[%emt 0:01:23]} 38. Qc7 {[%emt 0:00:01]} R8d7 {[%emt 0:00:00]} 39. Qc8 {[%emt 0:00:35]} Rd8 {[%emt 0:00:36]} 40. Qc7 {[%emt 0:00:00]} R8d7 {[%emt 0:00:00]} 41. Qc5 {[%emt 0:05:57]} f3 {[%emt 0:05:02]} 42. Qe3 {[%emt 0:02:30]} fxg2 {[%emt 0:23:44]} 43. f3 {[%emt 0:05:30]} Rxb7 {[%emt 0:01:20]} 44. axb7 {[%emt 0:00:30]} Rb6 {[%emt 0:00:00]} 45. fxe4 {[%emt 0:03:30]} Rxb7 {[%emt 0:00:00]} 46. Nd1 {[%emt 0:03:33]} a5 {[%emt 0:01:14]} 47. Qc3 {[%emt 0:03:18]} Qf4 {[%emt 0:00:08]} 48. Nf2 {[%emt 0:02:42]} a4 {[%emt 0:00:04]} 49. Qa3 {[%emt 0:02:56]} Rf7 {[%emt 0:01:03]} 50. Qe3 {[%emt 0:01:22]} Qe5 {[%emt 0:00:12]} 51. Kxg2 {[%emt 0:02:44]} Rb7 {[%emt 0:01:07]} 52. Rd1 {[%emt 0:01:26]} Rb2 {[%emt 0:00:43]} 53. d6 {[%emt 0:01:00]} Rb3 {[%emt 0:00:37]} 54. Qd4 {[%emt 0:01:04]} Rg3+ {[%emt 0:02:38]} 55. Kf1 {[%emt 0:01:15]} Qb5+ {[%emt 0:00:19]} 56. Rd3 {[%emt 0:00:10]} Qb1+ {[%emt 0:00:12]} 57. Rd1 {[%emt 0:00:13]} Qb5+ {[%emt 0:00:30]} 58. Rd3 {[%emt 0:00:07]} Qb1+ {[%emt 0:00:21]} 59. Rd1 {[%emt 0:00:30]} Qb5+ {[%emt 0:00:00]} 1/2-1/2

[Event "World Junior U20 Girls 2018"]
[Site "Gebze"]
[Date "2018.09.10"]
[Round "6"]
[White "Zhu, Jiner"]
[Black "Li, Xinyu"]
[Result "1-0"]
[ECO "B21"]
[WhiteElo "2364"]
[BlackElo "2086"]
[Annotator "NA"]
[PlyCount "135"]
[EventDate "2018.09.05"]
[EventType "swiss"]
[EventCountry "TUR"]
[SourceTitle "playchess.com"]
[Source "ChessBase"]
[SourceQuality "1"]
[TimeControl "40/5400+30:1800+30"]

1. e4 {[%emt 0:00:30]} c5 {[%emt 0:00:30]} 2. f4 {[%emt 0:00:30]} Nc6 {[%emt 0:00:00]} 3. Nf3 {[%emt 0:00:00]} g6 {[%emt 0:00:00]} 4. Bb5 {[%emt 0:00:00]} Bg7 {[%emt 0:00:30]} 5. Bxc6 {[%emt 0:00:00]} dxc6 {[%emt 0:05:30]} 6. d3 {[%emt 0:01:00]} Nf6 {[%emt 0:00:30]} 7. Qe2 {[%emt 0:05:30] B21: Sicilian: 2 f4 and Morra Gambit} (7. O-O Bg4 8. Nbd2 O-O 9. Qe1 Bxf3 10. Nxf3 Qb6 11. Kh1 Qc7 12. Rb1 Rad8 13. b3 Nh5 14. Qh4 Bf6 {1-0 (44) Barskij,V (2389)-Ilyuchyk,Y (2083) Minsk 2018}) 7... b6 $146 {[%emt 0:05:30]} ({Predecessor:} 7... Bg4 8. Nbd2 O-O 9. h3 Be6 10. Nf1 Qc7 11. Ng3 Rad8 12. O-O Bc8 13. Ne5 Nd7 14. Nxd7 Bxd7 {0-1 (44) Ilkovic,F (1885)-Uhrincat,I (1978) Slovakia 2018}) 8. Bd2 {[%emt 0:00:30]} Qc7 {[%emt 0:02:30]} 9. Nc3 {[%emt 0:03:30]} Bg4 {[%emt 0:04:30]} 10. h3 {[%emt 0:00:30]} Bxf3 {[%emt 0:01:30]} 11. Qxf3 {[%emt 0:00:30]} e6 {[%emt 0:00:00]} 12. e5 {[%emt 0:04:30]} Nd5 {[%emt 0:00:00]} 13. Ne4 {[%emt 0:00:00]} O-O-O {[%emt 0:02:30]} 14. a4 {[%emt 0:10:00]} a5 {[%emt 0:10:30]} 15. Nd6+ {[%emt 0:04:30]} Kb8 {[%emt 0:01:30]} 16. c4 {[%emt 0:00:30]} ({Lieber} 16. O-O-O $14) 16... Nb4 {[%emt 0:00:30]} 17. Bxb4 {[%emt 0:00:00]} cxb4 {[%emt 0:00:00]} 18. O-O-O {[%emt 0:14:00]} Bf8 {[%emt 0:01:00]} 19. Ne4 {[%emt 0:00:00]} Bc5 {[%emt 0:03:30]} 20. g4 {[%emt 0:03:00]} Bd4 {[%emt 0:06:30]} 21. Rde1 {[%emt 0:03:30]} Qe7 {[%emt 0:11:30]} 22. Nf6 {[%emt 0:06:30]} Kc7 {[%emt 0:02:30]} 23. b3 {[%emt 0:04:30]} Bc3 {[%emt 0:09:30]} 24. Re4 {[%emt 0:00:30]} Rd4 {[%emt 0:01:30]} 25. Rd1 {[%emt 0:05:30]} Qc5 {[%emt 0:02:30]} 26. Re2 {[%emt 0:02:30]} Qe7 {[%emt 0:08:30]} 27. Ne4 {[%emt 0:02:30]} Rd7 {[%emt 0:01:55]} 28. Rc2 {[%emt 0:03:30]} Bd4 {[%emt 0:00:54]} 29. Nf6 {[%emt 0:00:30]} Rdd8 {[%emt 0:01:50]} 30. h4 {[%emt 0:00:30]} h6 {[%emt 0:02:26]} 31. Qg3 {[%emt 0:00:30]} Kb8 {[%emt 0:02:26]} 32. Kb1 {[%emt 0:02:30]} Qc7 {[%emt 0:00:52]} 33. Re1 {[%emt 0:00:00]} Bc5 {[%emt 0:00:16]} 34. h5 {[%emt 0:02:00]} gxh5 {[%emt 0:03:19]} 35. gxh5 {[%emt 0:01:30]} Rd4 {[%emt 0:01:18]} 36. Ne4 {[%emt 0:01:30]} Rhd8 {[%emt 0:03:13]} 37. Nxc5 {[%emt 0:00:30]} bxc5 {[%emt 0:00:30]} 38. Re3 {[%emt 0:00:00]} Kb7 {[%emt 0:00:00]} 39. Rg2 {[%emt 0:00:00]} Qe7 {[%emt 0:00:34]} 40. Kc2 {[%emt 0:00:00]} R8d7 {[%emt 0:00:00]} 41. Rf3 {[%emt 0:03:00]} Qd8 {[%emt 0:01:57]} 42. Qh3 {[%emt 0:01:30]} Qh8 {[%emt 0:02:30]} 43. Rgg3 {[%emt 0:02:30]} Qd8 {[%emt 0:07:30]} 44. Rg7 {[%emt 0:00:30]} Qf8 {[%emt 0:02:30]} 45. Qg3 {[%emt 0:02:30]} Kb6 {[%emt 0:05:30]} 46. Rg8 {[%emt 0:01:30]} Qe7 {[%emt 0:00:00]} 47. Rb8+ {[%emt 0:00:30]} Rb7 {[%emt 0:01:00]} 48. Rh8 {[%emt 0:03:30]} Rd8 {[%emt 0:01:47]} 49. Rxh6 {[%emt 0:00:30]} Qd7 {[%emt 0:03:14]} 50. Qg1 {[%emt 0:01:30]} Rbb8 {[%emt 0:00:30]} 51. Rg3 {[%emt 0:00:00]} Rh8 {[%emt 0:01:27]} 52. Rxh8 {[%emt 0:00:00]} Rxh8 {[%emt 0:00:00]} 53. Rg5 {[%emt 0:02:30]} Qd8 {[%emt 0:01:19]} 54. f5 $11 {[%emt 0:03:30]} ({White should try} 54. Qe3 $14) 54... f6 {[%emt 0:02:22]} 55. exf6 {[%emt 0:12:30]} Qxf6 {[%emt 0:00:30]} 56. d4 {[%emt 0:00:00]} exf5 {[%emt 0:06:21]} 57. Rg6 {[%emt 0:04:00]} Qxd4 {[%emt 0:01:51]} 58. Qxd4 {[%emt 0:00:30]} cxd4 {[%emt 0:00:30]} 59. h6 {[%emt 0:00:00]} f4 {[%emt 0:01:01]} 60. Kd3 {[%emt 0:00:00]} f3 {[%emt 0:00:45]} 61. Rf6 {[%emt 0:01:30]} Kc5 {[%emt 0:01:37]} 62. Rf5+ {[%emt 0:03:32]} Kb6 {[%emt 0:01:21]} 63. c5+ {[%emt 0:00:52]} Kc7 {[%emt 0:00:04]} 64. Rf7+ {[%emt 0:01:09]} Kc8 {[%emt 0:00:18]} 65. h7 {[%emt 0:00:24]} Kb8 {[%emt 0:02:25]} 66. Rg7 {[%emt 0:00:20]} f2 {[%emt 0:00:00]} 67. Ke2 {[%emt 0:00:08]} Rf8 {[%emt 0:00:33]} 68. Kf1 {[%emt 0:00:17]} 1-0

[Event "World Junior U20 Girls 2018"]
[Site "Gebze"]
[Date "2018.09.10"]
[Round "6"]
[White "Dordzhieva, Dinara"]
[Black "Haussernot, Cecile"]
[Result "1-0"]
[ECO "D02"]
[WhiteElo "2318"]
[BlackElo "2237"]
[Annotator "NA"]
[PlyCount "119"]
[EventDate "2018.09.05"]
[EventType "swiss"]
[EventCountry "TUR"]
[SourceTitle "playchess.com"]
[Source "ChessBase"]
[SourceQuality "1"]
[TimeControl "40/5400+30:1800+30"]

1. Nf3 {[%emt 0:00:30]} d5 {[%emt 0:00:30]} 2. g3 {[%emt 0:00:00]} g6 {[%emt 0:00:00]} 3. Bg2 {[%emt 0:00:00]} Bg7 {[%emt 0:00:00]} 4. d4 {[%emt 0:00:00]} Nh6 {[%emt 0:00:30]} 5. c4 {[%emt 0:04:00]} dxc4 {[%emt 0:02:30] D02: 1 d4 d5 2 Nf3 sidelines, including 2...Nf6 3 g3 and 2...Nf6 3 Bf4} 6. Qa4+ {[%emt 0:04:30]} c6 {[%emt 0:02:30]} 7. Qxc4 {[%emt 0:00:30]} Nf5 {[%emt 0:00:30]} 8. e3 {[%emt 0:00:30]} b6 {[%emt 0:10:30]} 9. Ne5 $146 {[%emt 0:09:30]} ({Predecessor:} 9. Qa4 Ba6 10. g4 Nd6 11. Ne5 O-O 12. Nc3 Qc8 13. h3 {0-1 (32) Teterev,V (2487)-Ivanisevic,I (2638) Minsk 2017}) 9... Bxe5 {[%emt 0:01:30]} 10. dxe5 {[%emt 0:00:30]} O-O {[%emt 0:00:30]} 11. Qc3 {[%emt 0:12:30]} Ba6 {[%emt 0:00:30]} 12. b4 {[%emt 0:03:30]} Qd7 {[%emt 0:05:30]} 13. Bb2 {[%emt 0:00:30]} Rd8 {[%emt 0:00:30]} 14. Nd2 {[%emt 0:01:30]} Qe6 {[%emt 0:00:30]} 15. Qb3 {[%emt 0:07:30]} ({Besser ist} 15. a4 $16) 15... Qc8 {[%emt 0:15:30]} 16. Nc4 {[%emt 0:07:30]} Nd7 {[%emt 0:22:30] [#]} 17. O-O {[%emt 0:02:30]} ({Only move:} 17. e6 $1 $18 {[%cal Re6d7][%mdl 512]} fxe6 18. O-O) 17... Nf8 {[%emt 0:02:30]} 18. Rac1 {[%emt 0:08:30]} Qe6 {[%emt 0:00:30]} 19. Rfe1 {[%emt 0:01:30]} Rac8 {[%emt 0:00:30]} 20. a4 {[%emt 0:10:30]} Rd7 {[%emt 0:03:30]} 21. Qc3 {[%emt 0:04:30]} Rcd8 {[%emt 0:00:30]} 22. Be4 {[%emt 0:03:04]} Nh6 {[%emt 0:05:30]} 23. a5 {[%emt 0:01:46]} Ng4 $1 {[%emt 0:01:30]} 24. axb6 {[%emt 0:03:32]} axb6 {[%emt 0:00:30]} 25. Ba1 {[%emt 0:03:04]} h5 {[%emt 0:03:56]} 26. Rc2 {[%emt 0:05:31]} Rd1 {[%emt 0:04:46]} 27. Nxb6 {[%emt 0:01:00]} Nh7 {[%emt 0:03:50]} 28. h4 {[%emt 0:01:32]} Bb5 {[%emt 0:01:38]} 29. Bf3 {[%emt 0:02:09]} Rxe1+ {[%emt 0:03:11]} 30. Qxe1 {[%emt 0:00:30]} Qf5 {[%emt 0:00:00]} 31. Bd1 {[%emt 0:00:32]} Nxe5 {[%emt 0:01:17]} 32. Rd2 {[%emt 0:00:46]} Nd3 {[%emt 0:02:30]} 33. e4 {[%emt 0:00:30]} Qe6 {[%emt 0:00:30]} 34. Qe3 {[%emt 0:00:00]} Nf6 {[%emt 0:01:20]} 35. Be2 {[%emt 0:02:27]} Qxe4 {[%emt 0:01:36]} 36. Bxd3 {[%emt 0:00:19]} Qxe3 {[%emt 0:01:10]} 37. fxe3 {[%emt 0:00:04]} Ne4 {[%emt 0:01:39]} 38. Bxe4 {[%emt 0:01:15]} Rxd2 {[%emt 0:00:30]} 39. Bd4 {[%emt 0:00:00]} f5 {[%emt 0:00:32]} 40. Bf3 {[%emt 0:00:00]} Rc2 {[%emt 0:00:00]} 41. Nd7 {[%emt 0:02:59]} Rc1+ {[%emt 0:06:05]} 42. Kf2 {[%emt 0:01:30]} Rc2+ {[%emt 0:00:30]} 43. Ke1 {[%emt 0:00:00]} Rc1+ {[%emt 0:00:30]} 44. Kd2 {[%emt 0:01:00]} Rf1 {[%emt 0:00:00]} 45. Ne5 {[%emt 0:01:30]} Rf2+ {[%emt 0:04:00]} 46. Kc3 {[%emt 0:00:00]} Ba4 {[%emt 0:00:00]} 47. Bc5 {[%emt 0:02:00]} e6 {[%emt 0:03:00]} 48. Bxc6 {[%emt 0:00:30]} Rc2+ {[%emt 0:00:00]} 49. Kd3 {[%emt 0:00:30]} Bb3 {[%emt 0:00:00]} 50. Nxg6 {[%emt 0:02:30]} Kg7 {[%emt 0:00:30]} 51. Ne5 {[%emt 0:00:30]} Kf6 $18 {[%emt 0:00:30]} 52. Nd7+ {[%emt 0:01:30]} Kf7 {[%emt 0:00:30]} 53. b5 {[%emt 0:00:30]} Rb2 {[%emt 0:03:57]} 54. Ne5+ {[%emt 0:04:07]} Kf6 {[%emt 0:00:58]} 55. Bd4 {[%emt 0:02:17]} Rb1 {[%emt 0:00:07]} 56. b6 {[%emt 0:00:00]} Ke7 {[%emt 0:00:34]} 57. b7 {[%emt 0:00:33]} Bd1 {[%emt 0:01:06]} 58. Bg2 {[%emt 0:00:18]} Kd6 {[%emt 0:00:38]} 59. Nc4+ {[%emt 0:00:10]} Kc7 {[%emt 0:00:18]} 60. Be5+ {[%emt 0:00:30]} 1-0

[Event "World Junior U20 Girls 2018"]
[Site "Gebze"]
[Date "2018.09.10"]
[Round "6"]
[White "Khomeriki, Nino"]
[Black "Antova, Gabriela"]
[Result "1-0"]
[ECO "D48"]
[WhiteElo "2313"]
[BlackElo "2292"]
[Annotator "NA"]
[PlyCount "67"]
[EventDate "2018.09.05"]
[EventType "swiss"]
[EventCountry "TUR"]
[SourceTitle "playchess.com"]
[Source "ChessBase"]
[SourceQuality "1"]
[TimeControl "40/5400+30:1800+30"]

1. d4 {[%emt 0:00:30]} d5 {[%emt 0:00:30]} 2. c4 {[%emt 0:00:00]} e6 {[%emt 0:00:30]} 3. Nf3 {[%emt 0:00:00]} Nf6 {[%emt 0:00:00]} 4. Nc3 {[%emt 0:00:30]} c6 {[%emt 0:00:00]} 5. e3 {[%emt 0:04:30]} Nbd7 {[%emt 0:00:00]} 6. Bd3 {[%emt 0:00:00]} dxc4 {[%emt 0:00:00]} 7. Bxc4 {[%emt 0:00:00]} b5 {[%emt 0:00:30]} 8. Bd3 {[%emt 0:00:30]} Bb7 {[%emt 0:00:30]} 9. O-O {[%emt 0:00:30]} a6 {[%emt 0:00:30]} 10. e4 {[%emt 0:01:30]} c5 {[%emt 0:00:30]} 11. d5 {[%emt 0:00:30]} Qc7 {[%emt 0:00:00]} 12. dxe6 {[%emt 0:33:30]} fxe6 {[%emt 0:00:00] LiveBook: 396 Games} 13. Ne2 {[%emt 0:00:00] D48: Semi-Slav: Meran System: 7...b5 8 Bd3 a6} c4 {[%emt 0:13:30]} 14. Bc2 {[%emt 0:00:00]} O-O-O {[%emt 0:01:30]} (14... Nc5 15. Bf4 Qd7 16. Qxd7+ Nfxd7 17. Ned4 Be7 18. b4 cxb3 19. axb3 b4 20. Rfe1 O-O 21. Bc7 g6 {½-½ (40) Radjabov,T (2748)-Karjakin,S (2778) Shamkir 2018}) 15. Qe1 {[%emt 0:06:30]} e5 {[%emt 0:15:30]} 16. Ng3 $146 {[%emt 0:03:30]} ({Predecessor:} 16. Bd2 Re8 17. Ba5 Qc6 18. Nc3 b4 19. Nd5 Nxd5 20. exd5 Qb5 21. Bf5 Qxa5 22. Rc1 Qc7 23. Ng5 g6 24. Be6 Kb8 25. Qe2 Nb6 26. Nf7 Rg8 27. Rfd1 Bc5 28. Nxe5 Rgf8 {0-1 (28) Beradze,I (2486)-Firouzja,A (2570) Nakhchivan 2018}) 16... Bc5 {[%emt 0:05:30]} 17. Bd2 {[%emt 0:02:30]} Kb8 {[%emt 0:07:30]} (17... Bb6 $1 $11) 18. a4 {[%emt 0:01:30]} Qc6 {[%emt 0:02:30]} 19. axb5 {[%emt 0:01:30]} axb5 {[%emt 0:00:30]} 20. Qe2 {[%emt 0:12:30]} Bb6 {[%emt 0:09:30]} 21. Ba5 {[%emt 0:15:24]} Rhe8 $18 {[%emt 0:07:30]} (21... Bxa5 $16 22. Rxa5 Kc7) 22. b3 {[%emt 0:03:36]} c3 {[%emt 0:09:30]} 23. Bd3 {[%emt 0:01:14]} Bxa5 {[%emt 0:01:30]} 24. Rxa5 {[%emt 0:00:02]} b4 {[%emt 0:00:30]} 25. Rfa1 {[%emt 0:03:14]} Nc5 {[%emt 0:06:51]} 26. Bb5 {[%emt 0:00:06]} Qd6 {[%emt 0:08:24]} 27. Nf5 {[%emt 0:01:19]} Qc7 {[%emt 0:03:15]} 28. Qa2 {[%emt 0:02:48]} Qb6 {[%emt 0:00:10]} 29. Ne3 {[%emt 0:00:47]} Qd6 {[%emt 0:03:07]} 30. h3 {[%emt 0:02:50]} c2 {[%emt 0:03:46]} 31. Kh2 {[%emt 0:02:10]} Nxb3 {[%emt 0:00:59]} 32. Qxb3 {[%emt 0:00:26]} Rc8 {[%emt 0:00:50]} 33. Nxc2 {[%emt 0:00:54]} Bxe4 {[%emt 0:00:15]} 34. Nxb4 {[%emt 0:00:00]} 1-0